Cogmind - Beta 13 @@@ ROGUE MODE // 2024.04.15 @ 15:58:08 Player: m1m1c Result: Destroyed by G-47 Trooper with Particle Gun Performance ------------- Evolutions (2) 1000 Regions Visited (4) 800 Robots Destroyed (30) 150 Value Destroyed (797) 797 Prototype IDs (1) 20 Alien Tech Used (0) 0 Bonus (-41) -41 TOTAL SCORE: 2726 Bonus ------- Follower Combat Kills 40 Friendly Fire -81 Cogmind --------- Core Integrity 0/550 Matter 265/300 Energy 13/100 System Corruption 4% Temperature Cool (63) Movement Walking (130) Location -8/Materials Parts ------- > --- POWER (1) -------- (None) > --- PROPULSION (4) --- Titanium Leg Titanium Leg Titanium Leg > --- UTILITY (4) ------ (None) > --- WEAPON (2) ------- Field Laser > --- INVENTORY (5) ---- Titanium Leg Small Storage Unit Plasma Cutter Peak State ------------ > --- POWER ------------ Light Deuterium Engine > --- PROPULSION ------- Light Treads Light Treads > --- UTILITY ---------- Large Storage Unit Experimental Sensor Array Power Shielding Light Armor Plating > --- WEAPON ----------- Light Assault Rifle Mini Grenade Launcher > --- INVENTORY -------- Micro Nuclear Core Micro Nuclear Core Small Storage Unit Terrain Scanner Small Laser Plasma Cutter [Rating: 21] Favorites ----------- Power Ion Engine Engine Ion Engine Power Core Micro Nuclear Core Propulsion Light Treads Treads Light Treads Leg Aluminum Leg Utility Small Storage Unit Device Experimental Sensor Array Storage Small Storage Unit Protection Power Shielding Weapon Light Assault Rifle Energy Gun Particle Gun Energy Cannon Ion Cannon Ballistic Gun Light Assault Rifle Launcher Grenade Launcher Build | -11 -10 -10 -10 -8 ------- Run | Yrd Mat Min Sub Mat Slots Evolved 4 | . . . . 4 Power . | . . . . . Propulsion 2 | . . . . 2 Utility 2 | . . . . 2 Weapon . | . . . . . Parts Attached 36 | 6 1 4 . 25 Power 6 | 1 . . . 5 Engine 3 | 1 . . . 2 Core 3 | . . . . 3 Reactor . | . . . . . Propulsion 13 | 2 . 3 . 8 Treads 5 | . . 2 . 3 Leg 8 | 2 . 1 . 5 Wheel . | . . . . . Hover . | . . . . . Flight . | . . . . . Utility 7 | 1 . 1 . 5 Device 3 | . . 1 . 2 Storage 2 | 1 . . . 1 Processor . | . . . . . Hackware . | . . . . . Protection 2 | . . . . 2 Artifact . | . . . . . Weapon 10 | 2 1 . . 7 Energy Gun 4 | . . . . 4 Energy Cannon 2 | . . . . 2 Ballistic Gun 2 | 2 . . . . Ballistic Cannon . | . . . . . Launcher 2 | . 1 . . 1 Special Weapon . | . . . . . Impact Weapon . | . . . . . Slashing Weapon . | . . . . . Piercing Weapon . | . . . . . Special Melee Weapon . | . . . . . Unidentified Prototypes 1 | . . 1 . . Parts Lost 23 | . 1 . . 22 Power 4 | . . . . 4 Propulsion 8 | . 1 . . 7 Utility 5 | . . . . 5 Weapon 6 | . . . . 6 Highest Loss Streak 12 | . 1 . . 12 To Critical Strikes . | . . . . . Average Slot Usage (%) 77 | . 82 91 100 63 Engine 9 | . 14 14 14 6 Treads 14 | . . 4 28 14 Leg 7 | . 25 22 . 3 Device 7 | . . 7 14 5 Storage 10 | . 14 14 14 6 Protection 6 | . . . . 11 Energy Cannon 1 | . . . . 2 Ballistic Gun 9 | . 22 14 14 4 Launcher 8 | . 5 14 14 5 Naked Turns . | . . . . . Heaviest Build 37 | 12 14 15 15 37 Greatest Support 60 | 20 20 40 40 60 Greatest Overweight (x) 1 | . 1 . . 1 Average Overweight (x) . | . . . . . Largest Inventory Capacity 15 | 8 8 8 8 15 Average Capacity 9 | 6 8 8 8 11 Most Carried 7 | 2 6 6 6 7 Average Carried 4 | 1 4 5 6 4 Final Capacity 8 | 8 8 8 8 5 Final Carried 6 | 2 6 6 6 3 Class Distribution -------------------- 100% | Mutant Dominant Class ---------------- Mutant | -10/Materials Mutant | -10/Mines Mutant | -10/Subcaves Mutant | -8/Materials Resources | -11 -10 -10 -10 -8 ----------- Run | Yrd Mat Min Sub Mat Matter Collected 683 | 178 . . . 505 Remotely 168 | . . . . 168 Salvage Created 1070 | . 324 . . 746 Parts 48 | . 14 . . 34 Haulers Intercepted 3 | . 2 . . 1 Recyclers Shooed 2 | . 1 . . 1 Parts Field Recycled . | . . . . . Retrieved Matter . | . . . . . Parts Self-Destructed 7 | . . . 7 . Prevented . | . . . . . Kills | -11 -10 -10 -10 -8 ------- Run | Yrd Mat Min Sub Mat Combat Hostiles Destroyed 20 | . 5 . . 15 Guns 9 | . 3 . . 6 Cannons 3 | . . . . 3 AOE 8 | . 2 . . 6 Classes Destroyed 7 | . 4 . . 3 Worker 3 | . . . . 3 Hauler 3 | . 2 . . 1 Recycler 4 | . 2 . . 2 Swarmer 4 | . 3 . . 1 Grunt 13 | . 2 . . 11 Brawler 1 | . . . . 1 Sentry 2 | . . . . 2 Best Kill Streak 11 | . 7 . . 11 Combat Bots Only 7 | . 3 . . 7 Max Kills in Single Turn 4 | . 3 . . 4 Gunslinging 1 | . 1 . . . Exploded 2 | . 1 . . 2 Melee . | . . . . . Uniques/NPCs Destroyed . | . . . . . Combat | -11 -10 -10 -10 -8 -------- Run | Yrd Mat Min Sub Mat Hostile Shots Fired 243 | . 36 . . 207 Missed 67 | . 6 . . 61 Damage Taken 2869 | . 374 38 . 2457 Core 628 | . 58 8 . 562 Absorbed by Shields . | . . . . . Redirected to Shielding 42 | . . . . 42 Core Remaining (%) 86 | 100 . . 73 . Volleys Fired 81 | . 21 2 . 58 Largest 2 | . 2 2 . 2 Hottest 125 | . 50 50 . 125 Shots Fired 126 | . 42 4 . 80 Gun 84 | . 37 2 . 45 Cannon 23 | . . . . 23 Launcher 19 | . 5 2 . 12 Special . | . . . . . Kinetic 53 | . 37 2 . 14 Thermal 54 | . . . . 54 Explosive 19 | . 5 2 . 12 Electromagnetic . | . . . . . Robot Hit Streak 18 | . 6 3 . 18 Robot Miss Streak 3 | . 3 1 . 2 Penetration Max . | . . . . . Secondary Targets 2 | . 2 . . . Max Gunslinging Chain 1 | . 1 . . . Shots Hit Robots 82 | . 27 3 . 52 Core Hits 71 | . 18 5 . 48 Critical Kills . | . . . . . Critical Parts Destroyed . | . . . . . Critical Strikes . | . . . . . Melee Attacks . | . . . . . Impact . | . . . . . Slashing . | . . . . . Piercing . | . . . . . Sneak Attacks . | . . . . . Combat Hostiles . | . . . . . Follow-up Attacks . | . . . . . Damage Inflicted 2428 | . 469 119 . 1840 Guns 639 | . 198 17 . 424 Cannons 388 | . . . . 388 Explosions 1365 | . 271 102 . 992 Melee . | . . . . . Ramming 36 | . . . . 36 Kinetic 310 | . 198 17 . 95 Thermal 717 | . . . . 717 Explosive 1365 | . 271 102 . 992 Electromagnetic . | . . . . . Impact . | . . . . . Slashing . | . . . . . Piercing . | . . . . . Highest Corruption 4 | . . . . 4 Average Corruption 4 | . . . . 4 Corruption Purged . | . . . . . Corruption Blocked . | . . . . . Effects 8 | . . . . 8 Message Errors 1 | . . . . 1 Matter Fused 1 | . . . . 1 Heat Flow Errors 3 | . . . . 3 Parts Rejected 1 | . . . . 1 Parts Fused 1 | . . . . 1 Alerts 1 | . . . . 1 Overload Shots . | . . . . . Overflow Damage 22 | . 4 . . 18 Projectiles . | . . . . . Explosions 22 | . 4 . . 18 Melee . | . . . . . Knockbacks 2 | . . . . 2 Impact 2 | . . . . 2 Kinetic . | . . . . . Secondary . | . . . . . Self-Inflicted Damage 374 | . 98 24 . 252 Shots 11 | . 4 1 . 6 Rammed 4 | . . . . 4 Targets Rammed 9 | . . . . 9 Kicked 5 | . . . . 5 Crushed . | . . . . . Highest Temperature 323 | . 18 10 . 323 Average Temperature 76 | . 9 7 . 85 Received Heat Transfer 1245 | . 48 . . 1197 Siege Activations . | . . . . . Robots Corrupted . | . . . . . Combat Hostiles . | . . . . . Parts Fried . | . . . . . Impact Corruptions . | . . . . . Robots Melted . | . . . . . Combat Hostiles . | . . . . . Parts Melted 3 | . . . . 3 Heat Transferred 1384 | . . . . 1384 Parts Sabotaged . | . . . . . Parts Stolen . | . . . . . Parts Stripped . | . . . . . Power Chain Reactions . | . . . . . Alert | -11 -10 -10 -10 -8 ------- Run | Yrd Mat Min Sub Mat Peak Influence 275 | . 153 90 . 275 Initial 59 | . . 59 . 22 Average 73 | . 65 67 . 84 Maximum Alert Level 1 | . . . . 1 Low Security (%) 96 | 100 100 100 . 95 Level 1 3 | . . . . 4 Level 2 . | . . . . . Level 3 . | . . . . . Level 4 . | . . . . . Level 5 . | . . . . . High Security . | . . . . . Max Security . | . . . . . Squads Dispatched 2 | . . . . 2 Investigation . | . . . . . Extermination . | . . . . . Reinforcement 2 | . . . . 2 Assault . | . . . . . Garrison . | . . . . . Intercept . | . . . . . Searches Triggered . | . . . . . Construction Impeded 1 | . . . . 1 Haulers Reinforced . | . . . . . Active Scanning Responses . | . . . . . Cargo Convoy Interrupts . | . . . . . Stealth | -11 -10 -10 -10 -8 --------- Run | Yrd Mat Min Sub Mat Distress Signals 3 | . 1 . . 2 Communications Jammed . | . . . . . Distress Signals . | . . . . . Times Spotted 34 | . 6 2 . 26 Peak Tracking Total 7 | . 4 2 . 7 Tactical Retreats . | . . . . . Traps | -11 -10 -10 -10 -8 ------- Run | Yrd Mat Min Sub Mat Traps Triggered . | . . . . . Indirectly . | . . . . . Trap Hack Attempts . | . . . . . Triggered . | . . . . . Disarmed . | . . . . . Reprogrammed . | . . . . . Reused . | . . . . . Traps Extracted . | . . . . . Installed . | . . . . . Triggered . | . . . . . Machines | -11 -10 -10 -10 -8 ---------- Run | Yrd Mat Min Sub Mat Machines Disabled 3 | . 1 2 . . Max in Single Turn 1 | . 1 1 . . Machines Repaired . | . . . . . Machines Dismantled . | . . . . . Machines Sabotaged . | . . . . . Overloaded Fab Kills . | . . . . . Hacking | -11 -10 -10 -10 -8 --------- Run | Yrd Mat Min Sub Mat Machines Accessed . | . . . . . Terminals . | . . . . . Fabricators . | . . . . . Repair Stations . | . . . . . Recycling Units . | . . . . . Scanalyzers . | . . . . . Garrison Access . | . . . . . Total Hacks . | . . . . . Successful . | . . . . . Failed . | . . . . . Catastrophic . | . . . . . Database Lockouts . | . . . . . Manual . | . . . . . Terminals . | . . . . . Fabricators . | . . . . . Repair Stations . | . . . . . Recycling Units . | . . . . . Scanalyzers . | . . . . . Garrison Access . | . . . . . Terminal Hacks . | . . . . . Fabricator Hacks . | . . . . . Repair Station Hacks . | . . . . . Recycling Unit Hacks . | . . . . . Scanalyzer . | . . . . . Garrison Access Hacks . | . . . . . Unauthorized Hacks . | . . . . . Terminals . | . . . . . Fabricators . | . . . . . Repair Stations . | . . . . . Recycling Units . | . . . . . Scanalyzers . | . . . . . Garrison Access . | . . . . . Data Cores Recovered . | . . . . . Used . | . . . . . Hacking Detections . | . . . . . Full Trace Events . | . . . . . Feedback Events . | . . . . . Feedback Blocked . | . . . . . Robot Schematics Acquired . | . . . . . Robots Built . | . . . . . Authchips . | . . . . . Time . | . . . . . Total Robot Build Rating . | . . . . . Part Schematics Acquired . | . . . . . Parts Built . | . . . . . Authchips . | . . . . . Time . | . . . . . Total Part Build Rating . | . . . . . Parts Repaired . | . . . . . Time . | . . . . . Parts Recycled . | . . . . . Recycled Matter . | . . . . . Retrieved Matter . | . . . . . Retrieved Components . | . . . . . Parts Scanalyzed . | . . . . . Part Schematics Acquired . | . . . . . Parts Damaged . | . . . . . Bothacking | -11 -10 -10 -10 -8 ------------ Run | Yrd Mat Min Sub Mat Used RIF Installer . | . . . . . Robots Hacked . | . . . . . Non-combat . | . . . . . Combat . | . . . . . Robot Hacks Applied . | . . . . . Relay Couplers Released . | . . . . . Fabnet Peak Effective % . | . . . . . Robots Rewired . | . . . . . Allies Hacked . | . . . . . Hacks Repelled . | . . . . . Allies | -11 -10 -10 -10 -8 -------- Run | Yrd Mat Min Sub Mat Total Allies 3 | . . 3 . . Largest Group 3 | . . 3 3 3 Highest-Rated Group 40 | . . 40 40 40 Highest-Rated Ally 16 | . . 16 16 16 Total Orders . | . . . . . Ally Attacks 26 | . . 4 . 22 Total Damage 301 | . . 56 . 245 Kills 2 | . . . . 2 Allies Corrupted . | . . . . . Allies Melted . | . . . . . Intel | -11 -10 -10 -10 -8 ------- Run | Yrd Mat Min Sub Mat Robot Analysis Total . | . . . . . Derelict Logs Recovered 1 | . . . 1 . Drone Launches . | . . . . . Drone Recoveries . | . . . . . Exploration | -11 -10 -10 -10 -8 ------------- Run | Yrd Mat Min Sub Mat Turns Passed 1344 | 74 156 130 312 672 Spaces Moved 739 | 55 72 94 196 322 Core 9 | 3 . . . 6 Treads 437 | . . 11 196 230 Legs 293 | 52 72 83 . 86 Wheels . | . . . . . Hover . | . . . . . Flight . | . . . . . Fastest Speed 50 | 50 120 120 160 50 Average Speed 144 | 116 133 124 160 148 Slowest Speed 240 | 120 190 160 160 240 Overloaded Moves . | . . . . . Propulsion Burnouts . | . . . . . Robots Hopped . | . . . . . Cave-ins Triggered . | . . . . . Exploration Rate (%) 15 | 4 23 18 16 18 Regions Visited 4 Branch Regions 2 Pre-discovered Areas 2 | . . . 2 . Known Exits Taken . | . . . . . Unknown Exits Taken 4 | 1 1 1 1 . Scrap Searched . | . . . . . Spaces Dug . | . . . . . Terrain Destroyed 106 | . 15 14 . 77 Melee . | . . . . . Projectile 4 | . . . . 4 AOE 102 | . 15 14 . 73 Terrain Rammed . | . . . . . Walls Destroyed . | . . . . . Machines Disabled . | . . . . . Actions | -11 -10 -10 -10 -8 --------- Run | Yrd Mat Min Sub Mat Total 889 | 62 98 103 195 431 Wait 4 | . . . . 4 Move 735 | 54 71 93 195 322 Hop . | . . . . . Pick Up 15 | 2 4 2 . 7 Fast Attach 23 | 6 1 2 . 14 Attach 12 | . . 2 . 10 Detach 1 | . . . . 1 Swap 1 | . . . . 1 Drop 8 | . 1 2 . 5 Fire 81 | . 21 2 . 58 Melee . | . . . . . Ram . | . . . . . Kick 5 | . . . . 5 Crush 4 | . . . . 4 Escape Stasis . | . . . . . Rewire . | . . . . . Trap . | . . . . . Miscellaneous . | . . . . . Route ------- -11/Scrapyard -10/Materials -10/Mines -10/Subcaves -8/Materials History --------- Turn | Location | Event 7 | -11/Scrapyard | Discovered new exit (range 15) 75 | -11/Scrapyard | Entered Materials 158 | -10/Materials | Discovered new exit (range 9) 231 | -10/Materials | Entered Mines 239 | -10/Mines | Met a Derelict bent on vengeance 241 | -10/Mines | Assisted by bots powering up and referring to "LRC-V3" 289 | -10/Mines | Found a damaged Exp. Sensor Array with a note attached 291 | -10/Mines | Found Prototype Device 291 | -10/Mines | Identified Exp. Sensor Array 312 | -10/Mines | Build established: Mutant 323 | -10/Mines | Joined a pair of Derelicts in attacking an 0b10 outpost 327 | -10/Mines | Discovered new exit (range 8) 361 | -10/Mines | Entered Subcaves 361 | -10/Subcaves | Accompanied by 3 allies 382 | -10/Subcaves | Learned location of Storage (-8) 653 | -10/Subcaves | Discovered new exit (range 7) 659 | -10/Subcaves | Learned location of Zion (-6) 659 | -10/Subcaves | Met a Zionite searching for "candidates" 673 | -10/Subcaves | Entered Materials 673 | -8/Materials | Accompanied by 3 allies 673 | -8/Materials | Evolved 4 slots: Propulsion x2, Utility x2 962 | -8/Materials | Lost 3 allies 1109 | -8/Materials | Lost 6 parts (1p2n1u2w) 1118 | -8/Materials | Destroyed 7 combat bots 1189 | -8/Materials | Core integrity fell below 50% 1248 | -8/Materials | Core integrity fell below 20% 1262 | -8/Materials | Lost 12 parts (2p4n3u3w) 1345 | -8/Materials | Destroyed by G-47 Trooper with Particle Gun Last Messages --------------- G-47 Trooper knocked back. Acquired Particle Gun. R-06 Scavenger collects Lrg. Storage Unit. Mic. Nuclear Core destroyed. Particle Gun destroyed. Aluminum Leg destroyed. Critical hit (Burn: +37). Acquired Lgt. Ion Engine. Acquired 10 matter. System corrupted: Matter fused (-5). Lgt. Ion Engine destroyed. Acquired Titanium Leg. Acquired Field Laser. G-47 Trooper destroyed. Critical hit (Burn: +37). G-47 Trooper destroyed. Acquired Titanium Leg. System corrupted: Heat flow error (+121). Acquired Titanium Leg. Aluminum Leg destroyed. Map ----- +----------------------------------------------------+ | ?????????????????????????????????????????? | | ?????????????????????????????????????????? | | ?????????????????????????????????????????? | | ?????????????????????????????????????????? | | ?????????????????????????????????????????? | | ?????????????????????????#####???????????? | | ?????????????????????????# #???????????? | | ?????????????????????????# #???????????? | | ?????????????????????????# #???????????? | | ?????????????????????????# #???????????? | | ?????????????????????????# #???????????? | | ?????????????????????????# #???????????? | | ??????????????????######## #???????????? | | ??????????????????#* !!==# #???????????? | | ??????????????????#* !!==# #???????????? | | ??????????????????# # #???????????? | | ???????????######## # #???????????? | | ???????????# #???????????? | | ???????????# #???????????? | | ???????????# %*#???????????? | | ???????????# ############/#####????????? | | ???????????# !##???#[ gg= #????????? | | ???????????# !#???# """ #????????? | | ???????????# #???#[[ """ #????????? | | ???????????# !#???# """ #????????? | | ???????????# !#???#[@ #????????? | | ?####??????# !##???# """ #????????? | | ?# ????# ######### """ #????????? | | ?# !!??# # # """ #????????? | | ?# !! # # !# #????????? | | ?# ! + + ##########????????? | | ?# # # """ #?????????????????? | | ## # # """"" #?????????????????? | | # ?# # """"" #?????????????????? | | ## ??# # """"" #?????????????????? | | ### ????# # """ #?????????????????? | | = ##### # #?????????????????? | | ############ # "Y" +?????????????????? | | % % # """ #?????????????????? | | % ##+######?????????????????? | | ###????????????????????? | | ############# # ###?##???????????????? | | # % =### # ## #???????????????? | | # ! ### # !] #???????????????? | | %/%% ### # #???????????????? | | # ### # #???????????????? | | ###########?# + #???????????????? | | #??######??##+#### #???????????????? | | #??????????# #???????????????? | | #??? ??????# # ## ####???????????????? | +----------------------------------------------------+ Best States ------------- Heat Dissipation 31 Energy Generation 15 Energy Capacity 250 Matter Stores 300 Matter Capacity 300 Sight Range 16 Robot Scan Range 20 Terrain Scan Range 14 Terrain Scan Density 10 Armor Coverage 150 Power Shielding 33 Evasion (%) 55 Recoil Reduction 3 Item Schematics ----------------- None Robot Schematics ------------------ None Fabricated ------------ Nothing Alien Tech Used ----------------- None Achievements -------------- None Challenges ------------ None Game ------ Seed ForceAbsorptionBoomstick Manual? 0 Play Time 00:14:45 Cumulative 21.4 hours Start 2024.04.15 @ 14:37:17 End 2024.04.15 @ 15:58:08 Sessions 3 Manual Loads 0 Difficulty Rogue Special Mode None Game No. 71 Rogue 71 Adventurer 0 Explorer 0 Win Type - Total 0 Types 0/0/0/0/0/0/0/0/0 Lore% 16 Gallery% 29 Achievement% 23 Wizard Run 0 Options --------- Layout 1 ASCII 1 Keyboard 0 Movement Arrows Keybinds 0 Fullscreen 1 Font 18/SmallcapsGlow Map View 50x40 Zoom Use 0% Tactical HUD 0 Map Filters NONE Filters NONE Steam 1 RUN: 1d55030b-0ad3-49ff-a6bf-48bfadf5603a